bitfinex-derivatives/quotes_ETHF0:USTF0_20241104
["timestamp","ask_amount","ask_price","bid_price","bid_amount"]
[1730751402749,4.5663,2424.8,2424.7,0.41269]
[1730751402952,40.8,2424.9,2424.6,3.2078]
[1730751403153,40.8,2424.9,2424.8,0.41267]
[1730751404254,40.8,2424.9,2424.6,4.7949]
[1730751404255,41.21266,2424.9,2424.7,0.41267]
[1730751404557,40.8,2424.9,2424.8,0.41267]
[1730751404749,41.21265,2424.9,2424.8,0.41267]
[1730751405151,40.8,2424.9,2424.8,0.41267]
[1730751405757,41.21265,2424.9,2424.8,0.41267]
[1730751406557,0.41267,2424.8,2424.7,0.41268]
[1730751406946,40.8,2424.9,2424.8,0.41267]
[1730751410452,41.21265,2424.9,2424.8,0.41267]
[1730751410758,40.8,2424.9,2424.8,0.41267]
[1730751412356,41.21265,2424.9,2424.8,0.41267]
[1730751412858,40.8,2424.9,2424.8,0.41267]
[1730751413863,41.21265,2424.9,2424.8,0.41267]
[1730751414066,40.8,2424.9,2424.8,0.41267]
[1730751414371,41.21265,2424.9,2424.8,0.41267]
[1730751415663,44.924,2424.9,2424.6,3.2078]
[1730751415966,0.41268,2424.8,2424.7,0.41268]
[1730751416159,0.41268,2424.8,2424.7,0.41269]
[1730751416355,0.41269,2424.7,2424.6,3.6205]
[1730751416556,0.86739,2424.7,2424.6,3.6205]
[1730751416753,4.99139,2424.7,2424.6,3.6205]
[1730751417856,4.99139,2424.7,2424.6,0.4127]
[1730751419164,0.4187,2425.1,2425.0,0.41263]
[1730751421369,0.4187,2425.1,2424.3,2.0637]
[1730751421370,7.44155032,2425.1,2424.3,2.0637]
[1730751421569,0.41269,2424.7,2424.6,0.41269]
[1730751421874,6.10665032,2424.9,2424.7,0.41267]
[1730751421875,0.41268,2424.8,2424.7,0.41267]
[1730751422074,4.95948,2424.8,2424.7,0.41267]
[1730751422373,45.75948,2424.8,2424.7,0.41267]
[1730751423466,45.3468,2424.8,2424.7,0.41267]
[1730751424370,40.8,2424.8,2424.7,0.41267]
[1730751425675,0.4349,2425.0,2424.9,0.41265]
[1730751425975,41.2349,2425.0,2424.9,0.41265]
[1730751426167,41.64753,2425.0,2424.9,0.41265]
[1730751426968,41.2349,2425.0,2424.9,0.41265]
[1730751427272,40.8,2425.0,2424.9,0.41265]
[1730751428776,45.33663,2425.0,2424.9,0.41265]
[1730751428977,44.924,2425.0,2424.5,0.4558]
[1730751429175,44.924,2425.0,2424.8,0.41266]
[1730751429176,0.85786,2424.9,2424.8,0.41266]
[1730751429563,6.17832535,2424.9,2424.8,0.41266]
[1730751429773,0.85785,2424.9,2424.8,0.41266]
[1730751429969,0.4452,2424.9,2424.8,0.41266]
[1730751430176,0.85785,2424.9,2424.8,0.41266]
[1730751430367,0.4452,2424.9,2424.8,0.41266]
[1730751430974,0.4452,2424.9,2424.7,0.4515]
[1730751430975,42.40912535,2425.0,2424.7,0.4515]
[1730751431176,42.40912535,2425.0,2424.9,0.41265]
[1730751433578,45.61692535,2425.0,2424.9,0.41265]
[1730751434582,45.61692535,2425.0,2424.9,0.87395]
[1730751434881,1.60912535,2425.0,2424.9,0.87395]
[1730751436786,43.36072394,2425.1,2425.0,0.41263]
[1730751437088,42.9464661,2425.1,2425.0,0.41263]
[1730751437876,42.9464661,2425.1,2424.9,0.41263]
[1730751438073,0.41265,2425.0,2424.9,0.41263]
[1730751438378,2.5591161,2425.0,2424.9,0.41263]
[1730751438682,0.41265,2425.0,2424.9,0.41263]
[1730751438882,43.3590961,2425.1,2425.0,0.41263]
[1730751439083,0.41265,2425.0,2424.9,0.41264]
[1730751439386,2.55935191,2425.0,2424.9,0.41264]
[1730751439582,6.68335191,2425.0,2424.9,0.41264]
[1730751440291,4.53665,2425.0,2424.9,0.41264]
[1730751441183,7.22204452,2425.0,2424.9,0.41264]
[1730751441691,6.80939452,2425.0,2424.9,0.41264]
[1730751441983,43.89801452,2425.1,2425.0,0.41263]
[1730751442483,48.02201452,2425.1,2425.0,0.41263]
[1730751442874,47.60939452,2425.1,2425.0,0.41263]
[1730751443077,2.14922985,2425.1,2424.9,0.4623]
[1730751443383,2.14974909,2425.1,2425.0,2.37465757]
[1730751444383,42.94974909,2425.2,2425.1,0.41262]
[1730751444684,42.94974909,2425.2,2425.1,0.9631659]
[1730751444880,42.94974909,2425.2,2425.1,1.47602426]
[1730751445178,42.94974909,2425.2,2425.1,1.47608001]
[1730751445389,42.94974909,2425.2,2425.1,1.47601149]
[1730751445577,5.35754909,2425.3,2425.2,0.4126]
[1730751445776,2.14974909,2425.3,2425.2,3.6204]
[1730751445989,42.94974909,2425.4,2425.3,0.41258]
[1730751446180,42.94974909,2425.4,2425.3,1.41762184]
[1730751446483,40.8,2425.4,2425.3,1.93031115]
[1730751446983,2.14974909,2425.5,2425.4,0.41257]
[1730751447183,2.14974909,2425.5,2425.4,4.97677]
[1730751447385,1.611803,2425.5,2425.4,6.47343684]
[1730751447577,1.611803,2425.6,2425.5,0.41255]
[1730751447888,1.611803,2425.7,2425.6,0.41253]
[1730751448085,1.611803,2425.7,2425.6,1.47529684]
[1730751448384,1.611803,2425.7,2425.6,0.41253]
[1730751448778,1.611803,2425.8,2425.7,0.41252]
[1730751449889,42.411803,2425.9,2425.8,0.4125]
[1730751450992,42.824283,2425.9,2425.8,0.4125]
[1730751451188,42.411803,2425.9,2425.8,0.4125]
[1730751451483,1.611803,2425.9,2425.8,0.4125]
[1730751451690,1.611803,2426.0,2425.9,0.41248]
[1730751452183,42.824263,2426.0,2425.9,0.41248]
[1730751452586,42.824263,2426.0,2425.5,7.13802032]
[1730751452587,0.41248,2425.9,2425.7,0.4125]
[1730751452792,0.41248,2425.9,2425.6,1.14]
[1730751453093,42.411803,2426.0,2425.6,1.14]
[1730751453288,42.824273,2426.0,2425.6,1.14]
[1730751453493,42.824273,2426.0,2425.8,0.41248]
[1730751453793,0.41248,2425.9,2425.8,0.41248]
[1730751453994,42.411803,2426.0,2425.8,0.41248]
[1730751454187,42.824273,2426.0,2425.9,0.41248]
[1730751454384,41.21247,2426.0,2425.9,0.41248]
[1730751454894,0.41248,2425.9,2425.8,0.41248]
[1730751455195,41.21248,2426.0,2425.8,0.41248]
[1730751455390,41.21248,2426.0,2425.9,0.41248]
[1730751455694,41.21248,2426.0,2425.8,0.41248]
[1730751455890,41.21248,2426.0,2425.9,0.41248]
[1730751456195,40.8,2426.0,2425.6,1.14]
[1730751456594,40.8,2426.0,2425.5,3.2078]
[1730751456783,40.8,2426.0,2425.5,4.3458]
[1730751457592,40.8,2426.0,2425.5,7.67755032]
[1730751460595,40.8,2426.0,2425.5,4.3458]
[1730751460794,40.8,2426.0,2425.5,3.2078]
[1730751460999,42.411803,2426.0,2425.5,3.2078]
[1730751463099,42.411803,2426.0,2425.3,4.3458]
[1730751463400,1.611803,2425.9,2425.3,4.3458]
[1730751463597,0.4512,2425.8,2425.3,4.3458]
[1730751463894,0.4565,2425.7,2425.3,4.3458]
[1730751465500,0.4565,2425.7,2425.3,4.7728]
[1730751466296,0.86903,2425.7,2425.3,5.80426]
[1730751466599,0.41254,2425.6,2425.5,0.41254]
[1730751467201,0.41254,2425.6,2425.3,5.80426]
[1730751467202,0.86902,2425.7,2425.6,0.41253]
[1730751469000,0.4565,2425.7,2425.6,0.41253]
[1730751469902,0.86902,2425.7,2425.6,0.41253]
[1730751470102,1.03134,2425.6,2425.2,0.4126]
[1730751470298,0.41258,2425.3,2425.2,0.4126]
[1730751470499,0.41261,2425.2,2425.1,0.41261]
[1730751470802,1.71911,2425.2,2425.1,0.41261]
[1730751471096,1.71911,2425.2,2424.8,0.4414]
[1730751471097,1.3065,2425.2,2424.8,0.4414]
[1730751471302,0.41264,2425.0,2424.9,0.41264]
[1730751471802,2.91295575,2425.2,2425.0,0.41263]
[1730751471803,0.41263,2425.1,2425.0,0.41263]
[1730751473300,3.32557575,2425.2,2425.1,0.41262]
[1730751474208,1.71912,2425.2,2425.1,0.41262]
[1730751474506,1.3065,2425.2,2425.1,0.41262]
[1730751475304,1.7191,2425.2,2425.1,0.41262]
[1730751476611,1.3065,2425.2,2425.1,0.41262]
[1730751477011,1.7191,2425.2,2425.1,0.41262]
[1730751477711,1.3065,2425.2,2425.1,0.41262]
[1730751477913,1.7191,2425.2,2425.1,0.41262]
[1730751478309,0.4267,2425.2,2425.1,0.41262]
[1730751478502,1.60645575,2425.3,2425.1,4.1232]
[1730751478707,2.87203575,2425.4,2425.3,0.41258]
[1730751479011,0.853,2425.4,2425.3,0.41258]
[1730751479808,2.45945575,2425.4,2425.3,0.41258]
[1730751480311,0.853,2425.4,2425.3,0.41258]
[1730751480512,2.45945575,2425.4,2425.3,0.41258]
[1730751481312,0.853,2425.4,2425.3,0.41258]
[1730751481511,1.60645575,2425.4,2425.3,8.57263032]
[1730751481713,0.096,2425.8,2425.7,0.41252]
[1730751481714,1.70245575,2425.8,2425.7,0.41252]
[1730751482011,2.01893575,2425.9,2425.8,0.4125]
[1730751482225,1.60645575,2425.9,2425.8,0.4125]
[1730751483322,1.60645575,2425.9,2425.6,1.138]
[1730751483715,2.141941,2426.0,2425.7,0.41251]
[1730751483716,2.01896575,2425.8,2425.7,0.41251]
[1730751483917,1.60645575,2425.8,2425.7,0.41251]
[1730751484316,1.60645575,2425.9,2425.6,4.3458]
[1730751484519,1.60645575,2425.9,2425.8,0.4125]
[1730751484829,1.60645575,2426.0,2425.9,0.41248]
[1730751485222,2.92575575,2426.1,2426.0,0.41246]
[1730751486223,2.48925575,2426.1,2426.0,0.41246]
[1730751486722,2.03275575,2426.1,2426.0,0.41246]
[1730751487823,1.60645575,2426.1,2426.0,0.41246]
[1730751488028,42.40645575,2426.2,2425.9,3.2078]
[1730751488217,40.8,2426.2,2426.1,0.41245]
[1730751488722,40.8,2426.2,2426.1,1.33945]
[1730751489222,1.60645575,2426.4,2426.3,0.41241]
[1730751489615,42.40645575,2426.4,2426.3,0.41241]
[1730751491520,40.8,2426.4,2426.3,0.41241]
[1730751492219,41.2124,2426.4,2426.3,0.41241]
[1730751492524,42.40645575,2426.4,2426.3,0.41241]
[1730751493530,40.8,2426.4,2426.3,0.41241]
[1730751495933,40.8,2426.4,2426.3,3.31126032]
[1730751497228,40.8,2426.4,2426.3,7.43286032]
[1730751497431,1.60645575,2426.6,2426.5,0.41238]
[1730751497631,4.0947,2426.7,2426.5,0.41238]
[1730751497632,5.70115575,2426.7,2426.6,0.41236]
[1730751497832,4.0947,2426.7,2426.6,0.41236]
[1730751499736,3.658,2426.7,2426.6,0.41236]
[1730751501125,3.2078,2426.7,2426.6,0.41236]
[1730751502332,3.2078,2426.7,2426.6,4.53316]
[1730751503040,41.222,2426.9,2426.8,0.41233]
[1730751503242,41.222,2426.9,2426.8,3.31118032]
[1730751505740,41.222,2426.9,2426.8,4.44618032]
[1730751506740,0.422,2426.9,2426.8,4.44618032]
[1730751507435,41.222,2426.9,2426.8,4.44618032]
[1730751507636,41.222,2426.9,2426.8,1.54733]
[1730751509844,0.4267,2427.1,2426.8,4.03385032]
[1730751510143,1.70245575,2427.4,2427.2,0.41226]
[1730751510144,0.861,2427.3,2427.2,0.41226]
[1730751510340,0.41227,2427.2,2427.1,0.41228]
[1730751510649,0.41227,2427.2,2427.1,0.41227]
[1730751510844,4.53227,2427.2,2427.1,0.41227]
[1730751511655,4.12,2427.2,2427.1,0.41227]
[1730751511944,44.92,2427.2,2427.1,0.41227]
[1730751512135,41.21226,2427.2,2427.1,0.41227]
[1730751512335,0.41228,2427.1,2426.9,3.2078]
[1730751512546,0.41228,2427.1,2426.9,3.6201]
[1730751512841,0.41228,2427.1,2427.0,0.41229]
[1730751513743,0.41229,2427.1,2427.0,0.41229]
[1730751513937,40.8,2427.2,2426.9,3.2078]
[1730751514138,8.3585,2427.1,2426.6,1.135]
[1730751514350,1.03074,2427.0,2426.4,4.3428]
[1730751514547,0.8834,2426.9,2426.4,4.3428]
[1730751514741,1.3287,2426.9,2426.8,0.41233]
[1730751526657,1.74101,2426.9,2426.8,0.41233]
[1730751526856,1.3287,2426.9,2426.5,1.03096]
[1730751527057,0.41236,2426.7,2426.6,0.41234]
[1730751527558,4.53316,2426.7,2426.6,0.41234]
[1730751528257,0.41236,2426.7,2426.6,0.41234]
[1730751528457,1.3287,2426.9,2426.5,1.03096]
[1730751528665,0.41235,2426.8,2426.7,0.41234]
[1730751529163,4.53315,2426.8,2426.7,0.41234]
[1730751529363,4.1208,2426.8,2426.7,0.41234]
[1730751529863,4.53313,2426.8,2426.7,0.41234]
[1730751530057,4.1208,2426.8,2426.7,0.41234]
[1730751530265,4.53313,2426.8,2426.7,0.41234]
[1730751531063,1.3287,2426.9,2426.5,1.03096]
[1730751531260,1.3287,2426.9,2426.8,0.41233]
[1730751533573,1.74101,2426.9,2426.8,0.41233]
[1730751533869,1.3287,2426.9,2426.8,0.41233]
[1730751534057,1.74101,2426.9,2426.8,0.41233]
[1730751534458,1.3287,2426.9,2426.8,0.41233]
[1730751535569,4.00121582,2426.9,2426.8,0.41233]
[1730751535763,1.3287,2426.9,2426.8,0.41233]
[1730751536165,0.8913,2426.9,2426.8,0.41233]
[1730751536865,0.4453,2426.9,2426.8,0.41233]
[1730751537261,3.11781582,2426.9,2426.8,0.41233]
[1730751537459,3.08481582,2427.0,2426.6,5.6044]
[1730751537666,1.61315526,2426.7,2426.6,4.98586]
[1730751537964,1.61315526,2426.7,2426.6,5.52075156]
[1730751538662,2.15087368,2426.8,2426.6,4.5735]
[1730751538873,2.15087368,2426.8,2426.7,0.41235]
[1730751540564,3.1009021,2426.9,2426.8,0.41233]
[1730751540873,2.6885921,2426.9,2426.8,0.41233]
[1730751541074,0.41231,2427.0,2426.9,0.41231]
[1730751541675,4.95810899,2427.1,2427.0,0.41229]
[1730751541975,1.75109,2427.1,2427.0,0.41229]
[1730751542273,5.87109,2427.1,2427.0,0.41229]
[1730751543569,9.07810899,2427.1,2427.0,0.41229]
[1730751545374,4.95810899,2427.1,2427.0,0.41229]
[1730751545765,4.54581899,2427.1,2427.0,0.41229]
[1730751545969,1.3388,2427.1,2427.0,0.41229]
[1730751546370,3.83752215,2427.4,2427.0,8.62439]
[1730751546371,3.71524899,2427.4,2427.0,8.62439]
[1730751546579,2.69300097,2427.2,2427.1,0.41228]
[1730751546870,2.69300097,2427.2,2427.1,0.94763614]
[1730751547069,2.69300097,2427.2,2427.1,5.06763614]
[1730751547375,2.69300097,2427.2,2427.1,4.53228]
[1730751548273,2.69300097,2427.3,2427.1,4.53228]
[1730751548473,2.69188912,2427.3,2427.2,1.33637492]
[1730751548667,2.69188912,2427.3,2427.2,1.74863492]
[1730751549272,1.74663,2427.4,2427.3,0.41224]
[1730751549471,1.3344,2427.4,2427.3,0.41224]
[1730751549872,1.74663,2427.4,2427.3,0.41224]
[1730751550264,1.3344,2427.4,2427.3,0.41224]
[1730751550977,1.74663,2427.4,2427.3,0.41224]
[1730751553481,4.43700369,2427.4,2427.3,0.41224]
[1730751553683,5.4544,2427.4,2427.1,1.33637492]
[1730751553979,5.4544,2427.4,2427.0,0.41228]
[1730751553980,0.41229,2427.1,2427.0,0.41228]
[1730751554167,0.41231,2427.0,2426.9,0.4123]
[1730751554374,1.70191,2427.0,2426.9,0.4123]
[1730751555077,9.02971,2427.0,2426.9,0.4123]
[1730751555275,0.41235,2426.8,2426.7,0.41232]
[1730751555477,3.10200045,2426.8,2426.7,0.41232]
[1730751555975,0.41235,2426.8,2426.7,0.41232]
[1730751557273,7.70441899,2427.0,2426.5,1.03095]
[1730751557478,2.15115043,2426.8,2426.7,3.2078]
[1730751557671,3.76461204,2426.9,2426.8,0.41233]
[1730751557866,3.76461204,2426.9,2426.8,5.48917461]
[1730751557867,1.61346161,2426.9,2426.8,5.48917461]
[1730751558093,1.61346161,2427.0,2426.9,0.41231]
[1730751558275,1.61346161,2427.0,2426.9,0.94835461]
[1730751558473,1.61346161,2427.0,2426.9,5.06835461]
[1730751558871,1.61346161,2427.1,2427.0,0.41229]
[1730751559075,2.15115043,2427.3,2427.0,11.35364715]
[1730751559076,1.61346161,2427.2,2427.0,11.35364715]
[1730751559375,1.61346161,2427.3,2427.2,0.41226]
[1730751559577,1.61346161,2427.4,2427.2,4.12]
[1730751559779,1.61346161,2427.4,2427.3,6.51588715]
[1730751560178,1.61346161,2427.4,2427.3,10.63588715]
[1730751561886,40.8,2427.5,2427.4,0.41223]
[1730751561887,42.41273477,2427.5,2427.4,0.41223]
[1730751562078,40.8,2427.5,2427.4,0.41223]
[1730751562377,2.59185043,2427.6,2427.5,0.41221]
[1730751562883,43.39185043,2427.6,2427.5,0.41221]
[1730751564679,41.2407,2427.6,2427.5,0.41221]
[1730751565382,0.4407,2427.6,2427.5,0.41221]
[1730751565779,41.2407,2427.6,2427.5,0.41221]
[1730751566576,42.85184819,2427.6,2427.5,0.41221]
[1730751566776,41.2407,2427.6,2427.5,0.41221]
[1730751566976,42.85185084,2427.6,2427.5,0.41221]
[1730751570485,43.26404084,2427.6,2427.5,0.41221]
[1730751571185,42.85185084,2427.6,2427.5,0.41221]
[1730751571378,43.26404084,2427.6,2427.5,0.41221]
[1730751572880,42.85185084,2427.6,2427.5,0.41221]
[1730751573283,43.26404084,2427.6,2427.5,0.41221]
[1730751574787,43.26348279,2427.6,2427.5,0.41221]
[1730751575087,41.65289,2427.6,2427.5,0.41221]
[1730751575292,42.08719,2427.6,2427.5,0.41221]
[1730751575492,0.41223,2427.5,2427.4,0.41221]
[1730751575893,6.68258043,2427.5,2427.4,0.41221]
[1730751576190,1.03057,2427.4,2426.9,2.89584715]
[1730751576385,0.41229,2427.0,2426.9,1.53929]
[1730751578294,2.87676511,2427.1,2427.0,0.41229]
[1730751578697,0.4123,2427.0,2426.9,0.4123]
[1730751579186,2.46448511,2427.1,2426.8,4.3348]
[1730751579392,2.87677511,2427.1,2427.0,0.41229]
[1730751581199,2.46448511,2427.1,2427.0,0.41229]
[1730751581487,1.61038511,2427.1,2427.0,0.41229]
[1730751581791,1.61038511,2427.2,2427.1,0.41228]
[1730751581993,1.61038511,2427.2,2427.1,3.30812715]
[1730751585495,5.81138014,2427.3,2427.1,2.89584715]
[1730751585695,5.81138014,2427.3,2427.2,0.41226]
[1730751585897,2.60358014,2427.3,2427.2,0.41226]
[1730751586097,5.81138014,2427.3,2427.2,0.41226]
[1730751586496,2.57738014,2427.4,2427.3,0.41224]
[1730751586691,0.4302,2427.4,2427.3,3.62004]
[1730751586891,2.03902322,2427.4,2427.3,3.62004]
[1730751589708,0.4302,2427.4,2427.3,3.62004]
[1730751591198,0.4302,2427.4,2427.3,0.41224]
[1730751591395,0.4302,2427.4,2427.3,3.62004]
[1730751592098,2.57738014,2427.4,2427.3,0.41224]
[1730751593294,2.57738014,2427.4,2427.3,1.7483797]
[1730751595499,2.98961014,2427.4,2427.3,0.41224]
[1730751595802,2.988524,2427.4,2427.3,0.41224]
[1730751596002,2.98846631,2427.4,2427.3,0.41224]
[1730751597107,2.57623631,2427.4,2427.3,0.41224]
[1730751597299,2.57623631,2427.4,2427.3,1.7483797]
[1730751598004,0.4302,2427.4,2427.3,1.7483797]
[1730751598417,2.57623631,2427.4,2427.3,1.7483797]
[1730751599297,2.57623631,2427.4,2427.3,0.41224]
[1730751600505,0.4302,2427.4,2427.3,0.41224]
[1730751600912,2.57623631,2427.4,2427.3,0.41224]
[1730751601103,2.98846631,2427.4,2427.3,0.41224]
[1730751601606,0.41226,2427.2,2427.1,0.41226]
[1730751601807,2.55913287,2427.2,2427.1,0.41226]
[1730751602198,42.94687287,2427.2,2426.9,1.5463]
[1730751602399,2.87271755,2427.1,2427.0,0.41228]
[1730751602708,0.8503,2427.1,2427.0,0.41228]
[1730751603003,2.8733176,2427.1,2427.0,0.95368256]
[1730751603506,3.40945287,2427.1,2427.0,0.95368256]
[1730751604104,1.26258,2427.1,2427.0,0.54140256]
[1730751604306,0.4123,2427.0,2426.9,0.41229]
[1730751604510,2.99141695,2427.0,2426.9,0.95394063]
[1730751604713,2.99141695,2427.0,2426.9,0.41229]
[1730751605205,0.41231,2426.9,2426.8,0.41232]
[1730751605504,2.14780873,2426.9,2426.8,0.41233]
[1730751605902,2.14780873,2427.0,2426.9,0.41231]
[1730751606100,2.57700873,2427.1,2427.0,0.41229]
[1730751606399,2.57700873,2427.1,2427.0,4.04869]
[1730751606906,2.57700873,2427.1,2427.0,4.59024981]
[1730751607109,2.57700873,2427.1,2427.0,4.04869]
[1730751607609,2.14780873,2427.2,2427.1,0.41228]
[1730751608305,2.14780873,2427.2,2427.1,0.95383133]
[1730751609410,2.14780873,2427.2,2427.1,0.95384873]
[1730751609612,2.14780873,2427.2,2427.1,0.41228]
[1730751609811,2.14780873,2427.2,2427.1,0.95385039]
[1730751610008,2.14780873,2427.2,2427.1,0.41228]
[1730751611605,2.14780873,2427.2,2427.1,0.95389879]
[1730751612116,2.14780873,2427.2,2427.1,4.16169879]
[1730751613310,2.14780873,2427.2,2427.1,3.62008]
[1730751613510,4.42044469,2427.3,2427.2,0.41226]
[1730751613707,4.00819469,2427.3,2426.8,4.23861]
[1730751613912,1.61050821,2427.0,2426.9,2.07800455]
[1730751614215,2.14734428,2427.1,2427.0,0.41229]
[1730751614418,2.14734428,2427.1,2427.0,0.95402622]
[1730751615310,3.10097469,2427.2,2426.9,1.124]
[1730751615516,3.10097469,2427.2,2427.1,0.41228]
[1730751615910,2.68869469,2427.2,2427.1,0.41228]
[1730751616110,2.68869469,2427.2,2426.9,5.04962663]
[1730751616111,4.42044469,2427.3,2427.2,0.41226]
[1730751616309,1.3195,2427.3,2426.9,4.01884663]
[1730751616510,3.09541353,2427.2,2427.1,0.41226]
[1730751618717,2.68314353,2427.2,2427.1,0.41226]
[1730751619422,3.09540353,2427.2,2427.1,1.74839889]
[1730751620930,2.68314353,2427.2,2427.1,1.74839889]
[1730751621229,3.09540353,2427.2,2427.1,1.74839889]
[1730751621930,2.68314353,2427.2,2427.1,1.74839889]
[1730751622118,3.09540353,2427.2,2427.1,1.74839889]
[1730751623823,0.41229,2427.1,2427.0,0.41228]
[1730751624024,0.41229,2427.0,2426.9,1.5363]
[1730751624219,3.52993112,2427.0,2426.9,1.5363]
[1730751624425,10.4450887,2427.0,2426.7,1.33613889]
[1730751624725,10.4450887,2427.0,2426.5,1.07380459]
[1730751624726,0.41236,2426.6,2426.5,2.87249889]
[1730751624923,0.41236,2426.6,2426.5,3.41454279]
[1730751624924,2.55850398,2426.6,2426.5,3.41454279]
[1730751625131,2.14614398,2426.6,2426.5,3.41454279]
[1730751625335,2.58064398,2426.6,2426.5,2.0784039]
[1730751626424,0.4345,2426.6,2426.5,2.0784039]
[1730751627037,2.58064398,2426.6,2426.5,2.0784039]
[1730751627431,0.4345,2426.6,2426.5,2.0784039]
[1730751628127,0.84686,2426.6,2426.5,2.0784039]
[1730751628328,2.99300398,2426.6,2426.5,2.0784039]
[1730751628534,2.99300398,2426.6,2426.5,1.53636]
[1730751629822,2.58064398,2426.6,2426.5,1.53636]
[1730751630022,0.4345,2426.6,2426.5,1.53636]
[1730751630822,0.84686,2426.6,2426.5,1.53636]
[1730751631023,2.99300398,2426.6,2426.5,1.53636]
[1730751631223,2.99300398,2426.6,2426.0,3.2078]
[1730751631224,2.58064398,2426.6,2426.0,3.2078]
[1730751631424,2.01987827,2426.3,2426.2,0.41243]
[1730751631628,1.60744827,2426.3,2426.0,4.0971]
[1730751631830,2.14326436,2426.4,2426.1,0.41244]
[1730751631831,43.25457827,2426.2,2426.1,0.41244]
[1730751632033,0.41245,2426.1,2426.0,3.62026]
[1730751632331,2.90139827,2426.1,2426.0,3.62026]
[1730751632532,2.48894827,2426.1,2426.0,3.62026]
[1730751633228,2.48894827,2426.1,2425.9,1.125]
[1730751633422,0.41246,2426.0,2425.9,1.125]
[1730751633730,2.48894827,2426.1,2425.7,1.5375]
[1730751633731,10.35496436,2426.1,2425.7,1.5375]
[1730751633928,1.60450832,2425.8,2425.7,1.5375]
[1730751634233,2.01700832,2425.8,2425.7,1.5375]
[1730751634425,0.8312,2425.8,2425.7,0.4125]
[1730751634826,2.43570832,2425.8,2425.7,0.4125]
[1730751635322,2.43570832,2425.8,2425.1,3.3038]
[1730751635323,7.7489,2425.8,2425.1,3.3038]
[1730751635527,0.41257,2425.4,2425.2,0.4126]
[1730751635728,0.4547,2425.3,2425.2,0.4126]
[1730751636538,0.4547,2425.3,2425.1,0.8841]
[1730751636836,0.4547,2425.3,2425.2,0.4126]
[1730751637638,0.86728,2425.3,2425.2,0.4126]
[1730751637830,0.4547,2425.3,2425.2,0.4126]
[1730751638229,0.86729,2425.3,2425.1,1.29671]
[1730751638434,0.4547,2425.3,2424.9,4.62130726]
[1730751638734,0.4547,2425.3,2425.2,0.4126]
[1730751639235,0.41262,2425.2,2425.0,3.30823187]
[1730751639628,0.41262,2425.2,2425.0,0.41263]
[1730751639827,0.4412,2425.1,2425.0,0.41263]
[1730751641843,0.85382,2425.1,2425.0,0.41263]
[1730751642229,0.41263,2425.0,2424.9,0.41265]
[1730751642532,0.41265,2424.9,2424.8,1.123]
[1730751642733,0.4622,2424.9,2424.8,1.53565]
[1730751644133,0.4412,2425.1,2424.8,1.123]
[1730751644329,3.2078,2425.2,2425.1,0.41262]
[1730751644525,3.6204,2425.2,2425.1,0.41262]
[1730751645138,3.62041,2425.2,2425.1,0.41262]
[1730751645327,0.41262,2425.1,2425.0,0.41262]
[1730751645935,3.2078,2425.2,2424.7,1.123]
[1730751646137,0.41265,2424.9,2424.8,0.41265]
[1730751646339,0.41265,2425.0,2424.9,0.41265]
[1730751646740,0.41265,2424.9,2424.8,0.41265]
[1730751647039,0.4244,2424.9,2424.8,0.41265]
[1730751647236,0.83705,2424.9,2424.8,0.41265]
[1730751647541,0.8655,2424.9,2424.8,0.41265]
[1730751647841,0.41267,2424.8,2424.7,0.41268]
[1730751648236,0.8655,2424.9,2424.7,0.41269]
[1730751648237,1.27817,2424.9,2424.7,0.41269]
[1730751648444,1.27816,2424.9,2424.8,0.41267]
[1730751648649,4.9895,2424.9,2424.6,4.091]
[1730751648940,0.41267,2424.8,2424.7,0.41267]
[1730751649342,0.8655,2424.9,2424.6,4.091]
[1730751649544,1.27816,2424.9,2424.8,0.41267]
[1730751649735,0.41268,2424.8,2424.6,4.091]
[1730751649945,0.41269,2424.7,2424.6,0.41269]
[1730751650338,0.431,2424.8,2424.3,0.8669]
[1730751650643,0.41269,2424.7,2424.6,0.4127]
[1730751650843,0.431,2424.8,2424.3,1.9899]
[1730751651043,0.84368,2424.8,2424.4,0.41274]
[1730751651233,0.431,2424.8,2424.4,1.03185]
[1730751651434,0.84368,2424.8,2424.7,0.41269]
[1730751652034,0.431,2424.8,2424.4,2.89560187]
[1730751652341,0.41273,2424.5,2424.4,0.41272]
[1730751652637,0.41274,2424.4,2424.3,0.83394]
[1730751652947,0.87294,2424.4,2424.3,0.41274]
[1730751653541,0.4602,2424.4,2424.3,0.41274]
[1730751653933,0.87294,2424.4,2424.3,0.41274]
[1730751654140,1.33714,2424.4,2424.3,0.41274]
[1730751654737,0.9244,2424.4,2424.3,0.41274]
[1730751654939,3.2078,2424.6,2424.5,0.41272]
[1730751655138,3.6205,2424.6,2424.5,0.41272]
[1730751655941,3.2078,2424.6,2424.5,0.41272]
[1730751656843,3.6205,2424.6,2424.5,0.41272]
[1730751657743,4.526,2424.7,2424.6,0.4127]
[1730751658135,8.65,2424.7,2424.6,0.4127]
[1730751659943,0.41272,2424.6,2424.5,0.41271]
[1730751660847,4.526,2424.7,2424.6,0.4127]
[1730751661347,8.65,2424.7,2424.6,0.4127]
[1730751662544,8.2373,2424.7,2424.4,0.4195]
[1730751662846,0.41272,2424.6,2424.5,0.4127]
[1730751663736,0.41275,2424.4,2424.3,0.41273]
[1730751663942,5.14505,2424.7,2424.2,0.41276]
[1730751663943,0.41277,2424.3,2424.2,0.41276]
[1730751664140,1.31257,2424.3,2424.2,0.41276]
[1730751664344,1.31257,2424.3,2424.1,3.2078]
[1730751664345,5.0246,2424.3,2423.9,0.4223]
[1730751664538,5.0246,2424.3,2424.0,0.41279]
[1730751664539,0.41281,2424.1,2424.0,0.41279]
[1730751664942,40.8,2424.1,2424.0,0.41279]